bitfinex/quotes_ETHUSD_20250131
["timestamp","ask_amount","ask_price","bid_price","bid_amount"]
[1738297987926,0.1730856,3232.4,3232.3,6.12260392]
[1738297988131,0.1730856,3232.4,3232.3,6.34830518]
[1738297988332,3.09358,3232.5,3232.3,6.34830518]
[1738297988538,0.17302681,3232.4,3232.3,5.65904479]
[1738297988850,3.26669681,3232.4,3232.3,5.65904479]
[1738297989030,4.03619681,3232.4,3232.3,5.37]
[1738297995355,3.09386,3232.2,3232.1,5.83358971]
[1738297995553,3.85726,3232.2,3232.1,5.83358971]
[1738297995730,4.74256873,3232.2,3232.1,5.83358971]
[1738297996860,7.74256873,3232.2,3232.1,5.37]
[1738297999230,8.29256873,3232.2,3232.1,5.37]
[1738297999483,3.09482,3231.2,3231.1,0.7774]
[1738297999788,3.09482,3231.2,3231.1,5.37]
[1738298000287,3.26737213,3231.2,3231.1,5.37]
[1738298000648,0.17255213,3231.2,3231.1,5.37]
[1738298001547,0.17255213,3231.2,3231.1,6.6844]
[1738298001746,0.17255213,3231.2,3231.1,6.97363195]
[1738298001959,3.09447,3231.6,3231.1,6.97363195]
[1738298002155,0.17255213,3231.2,3231.1,6.97363195]
[1738298002356,3.09409,3232.0,3231.2,0.7774]
[1738298002574,3.09409,3232.0,3231.3,6.1451032]
[1738298003283,3.09409,3232.0,3231.4,0.28923195]
[1738298003687,3.09443,3231.7,3231.4,0.28923195]
[1738298003983,3.09416,3231.9,3231.4,0.28923195]
[1738298004588,3.09416,3231.9,3231.3,6.1451032]
[1738298004976,3.09434,3231.7,3231.3,6.1451032]
[1738298005487,3.09434,3231.7,3231.4,5.37]
[1738298008879,0.17186483,3231.6,3231.4,5.37]
[1738298013990,3.26631483,3231.6,3231.4,5.37]
[1738298014189,3.09453,3231.5,3231.4,5.37]
[1738298014493,4.01874392,3231.5,3231.4,5.37]
[1738298015689,7.01874392,3231.5,3231.4,5.37]
[1738298020268,8.19816367,3231.5,3231.4,5.37]
[1738298020490,3.85981,3230.9,3230.8,5.37]
[1738298020689,3.09549,3230.5,3230.4,5.37]
[1738298021373,3.26705656,3230.5,3230.4,5.37]
[1738298021583,0.17156656,3230.5,3230.4,5.37]
[1738298022182,3.26705656,3230.5,3230.4,5.37]
[1738298022380,3.09549,3230.5,3230.4,5.37]
[1738298022601,3.26705656,3230.5,3230.4,5.37]
[1738298023373,3.09597,3230.0,3229.9,5.37]
[1738298023671,3.26715583,3230.0,3229.9,5.37]
[1738298024109,3.26715583,3230.0,3229.9,5.65910677]
[1738298025675,3.26715583,3230.0,3229.9,5.37]
[1738298029697,4.04735583,3230.0,3229.9,5.37]
[1738298029896,4.76167141,3230.0,3229.9,5.37]
[1738298030069,3.09635,3229.6,3229.5,5.37]
[1738298030427,3.26724526,3229.6,3229.5,5.37]
[1738298034508,4.05594526,3229.6,3229.5,5.37]
[1738298034910,7.05594526,3229.6,3229.5,5.37]
[1738298035109,8.93078979,3229.6,3229.5,5.37]
[1738298035878,4.59208979,3229.6,3229.5,5.37]
[1738298036198,3.26724526,3229.6,3229.5,5.37]
[1738298039505,3.8790901,3229.6,3229.5,5.37]
[1738298040584,4.6861901,3229.6,3229.5,5.37]
[1738298043422,3.26724526,3229.6,3229.5,5.37]
[1738298044252,4.04654526,3229.6,3229.5,5.37]
[1738298044534,5.43094398,3229.6,3229.5,5.37]
[1738298044891,7.65164398,3229.6,3229.5,5.37]
[1738298045104,6.26724526,3229.6,3229.5,5.37]
[1738298048027,3.26724526,3229.6,3229.5,5.37]
[1738298048525,4.05734526,3229.6,3229.5,5.37]
[1738298050024,4.05734526,3229.6,3229.0,5.37]
[1738298050235,3.09683,3229.1,3229.0,5.37]
[1738298050525,0.17040468,3229.1,3229.0,5.37]
[1738298050715,3.09648,3229.5,3229.0,6.1482]
[1738298050920,3.09667,3229.3,3229.0,6.1482]
[1738298051555,0.17032611,3229.2,3229.0,6.1482]
[1738298051761,3.09667,3229.3,3229.0,6.1482]
[1738298052025,0.17032611,3229.1,3229.0,6.1482]
[1738298052225,3.09667,3229.3,3229.0,6.1482]
[1738298052665,3.26706611,3229.2,3229.0,6.1482]
[1738298053431,0.17032611,3229.2,3229.0,6.87782]
[1738298053635,0.17032611,3229.2,3229.1,0.814]
[1738298053837,3.09644,3229.6,3229.1,0.814]
[1738298054031,0.17036933,3229.2,3229.1,0.814]
[1738298054256,3.09644,3229.6,3229.1,0.814]
[1738298054457,0.17036933,3229.2,3229.1,0.814]
[1738298054760,0.17036933,3229.2,3229.1,2.785875]
[1738298054962,3.09644,3229.6,3229.1,2.785875]
[1738298055299,3.09644,3229.6,3229.1,3.07522215]
[1738298055441,0.17036933,3229.5,3229.1,3.07522215]
[1738298055936,0.17036933,3229.5,3229.2,5.37]
[1738298056132,0.17036933,3229.5,3229.2,7.41721522]
[1738298056339,0.17036933,3229.5,3229.3,0.8028]
[1738298056838,3.26683933,3229.5,3229.3,0.8028]
[1738298057961,0.17036933,3229.5,3229.3,0.8028]
[1738298058137,3.09601,3230.0,3229.4,17.39655]
[1738298058329,3.09579,3230.2,3229.6,0.7826]
[1738298058524,3.09579,3230.2,3229.7,0.8262]
[1738298058730,3.09579,3230.2,3229.8,5.37]
[1738298058935,3.09579,3230.2,3229.8,5.65965203]
[1738298059535,3.09579,3230.2,3229.9,0.7558]
[1738298060737,3.09561,3230.4,3230.0,5.37]
[1738298061138,3.09543,3230.6,3230.1,0.8265]
[1738298061463,3.09523,3230.8,3230.3,0.8182]
[1738298061663,3.09503,3231.0,3230.4,0.8182]
[1738298061859,3.09495,3231.1,3230.5,17.39544]
[1738298062066,3.09495,3231.1,3230.6,2.557744]
[1738298062372,3.09474,3231.3,3230.7,5.37]
[1738298062742,0.8328,3231.4,3230.7,5.37]
[1738298062994,3.09511,3230.9,3230.7,5.37]
[1738298065843,3.0952,3230.8,3230.7,5.37]
[1738298067647,3.09509,3231.0,3230.7,5.37]
[1738298068743,0.16467379,3230.9,3230.8,0.7634]
[1738298068949,3.09483,3231.2,3230.8,2.26974]
[1738298069147,0.16467379,3230.9,3230.8,2.26974]
[1738298069369,3.09483,3231.2,3230.8,2.26974]
[1738298069570,0.16469343,3230.9,3230.8,2.26974]
[1738298069770,3.09473,3231.3,3230.8,2.26974]
[1738298069944,0.16469343,3230.9,3230.8,2.26974]
[1738298070147,3.09483,3231.2,3230.8,2.26974]
[1738298070347,0.16469343,3230.9,3230.8,2.26974]
[1738298070652,3.09483,3231.2,3230.8,2.26974]
[1738298070877,0.16469343,3230.9,3230.8,2.26974]
[1738298071085,3.09483,3231.2,3230.8,2.26974]
[1738298071686,0.16469343,3231.1,3230.8,2.26974]
[1738298072050,0.16469343,3231.1,3230.9,0.763974]
[1738298072250,3.09473,3231.3,3230.9,0.763974]
[1738298072475,0.16469343,3231.0,3230.9,0.763974]
[1738298072979,3.09473,3231.3,3230.9,0.763974]
[1738298073181,0.16469343,3231.0,3230.9,0.763974]
[1738298073386,3.09473,3231.3,3230.9,0.763974]
[1738298073594,0.16469343,3231.0,3230.9,0.763974]
[1738298073769,3.09473,3231.3,3230.9,6.133974]
[1738298073949,0.16469343,3231.0,3230.9,5.37]
[1738298074154,3.09473,3231.3,3230.9,5.37]
[1738298074456,0.16469343,3231.0,3230.9,5.37]
[1738298074656,3.09473,3231.3,3230.9,5.37]
[1738298074880,0.16469343,3231.0,3230.9,5.37]
[1738298075077,3.09473,3231.3,3230.9,5.37]
[1738298075288,0.16469343,3231.0,3230.9,5.37]
[1738298075777,3.09483,3231.2,3230.9,5.37]
[1738298075981,0.16469343,3231.0,3230.9,6.133974]
[1738298076187,3.89265,3231.9,3231.1,0.7915]
[1738298076366,3.09426,3231.8,3231.2,5.37]
[1738298076568,3.09426,3231.8,3231.3,5.37]
[1738298077161,3.09455,3231.5,3231.3,5.37]
[1738298078476,3.09436,3231.7,3231.3,5.37]
[1738298078682,3.09444,3231.6,3231.3,5.37]
[1738298079986,3.09456,3231.5,3231.3,5.37]
[1738298080761,3.09444,3231.6,3231.3,5.37]
[1738298080958,3.09463,3231.4,3231.3,5.37]
[1738298082989,3.90343,3231.4,3231.3,5.37]
[1738298083190,4.912669,3231.4,3231.3,5.37]
[1738298083794,5.62812415,3231.4,3231.3,5.37]
[1738298084091,8.62812415,3231.4,3231.3,5.37]
[1738298085093,9.26175367,3231.4,3231.3,5.37]
[1738298085793,3.09509,3231.0,3230.7,0.7713]
[1738298085991,3.09511,3230.9,3230.7,6.1413]
[1738298086196,3.26048665,3230.9,3230.7,6.1413]
[1738298086393,3.0952,3230.8,3230.7,5.37]
[1738298086785,3.26057665,3230.8,3230.7,5.37]
[1738298091617,0.16537665,3230.8,3230.7,5.37]
[1738298091828,3.09508,3231.0,3230.7,5.37]
[1738298091987,3.26056097,3230.8,3230.7,5.37]
[1738298093217,3.97753707,3230.8,3230.7,5.37]
[1738298093594,4.79153707,3230.8,3230.7,5.37]
[1738298096425,5.42069684,3230.8,3230.7,5.37]
[1738298100429,3.09555,3230.5,3230.0,8.93]
[1738298100930,3.09603,3230.0,3229.8,8.93]
[1738298101228,0.1649252,3229.9,3229.8,8.93]
[1738298102392,0.1649252,3229.9,3229.6,0.7552]
[1738298106334,3.2610252,3229.9,3229.5,0.28919318]
[1738298106506,3.2610252,3229.9,3229.6,8.93]
[1738298107096,0.1649252,3229.9,3229.6,8.93]
[1738298107333,3.09617,3229.8,3229.6,8.93]
[1738298107638,0.16461105,3229.7,3229.6,8.93]
[1738298111337,0.16461105,3229.7,3229.4,8.93]
[1738298111581,3.91255,3229.5,3229.4,8.93]
[1738298111830,4.62990811,3229.5,3229.4,8.93]
[1738298112222,4.79445239,3229.5,3229.4,8.93]
[1738298112895,5.34445239,3229.5,3229.4,8.93]
[1738298113708,3.09712,3228.8,3228.6,8.93]
[1738298113898,1.43190239,3229.5,3228.5,0.7949]
[1738298113899,3.09704,3228.9,3228.7,8.93]
[1738298114299,0.16395896,3228.8,3228.7,8.93]
[1738298115701,3.26107896,3228.8,3228.7,8.93]
[1738298115918,3.09712,3228.8,3228.7,8.93]
[1738298116111,3.26101213,3228.8,3228.7,8.93]
[1738298118419,3.26101213,3228.8,3228.5,0.7949]
[1738298118420,3.09722,3228.7,3228.6,8.93]
[1738298118816,3.26103746,3228.7,3228.6,8.93]
[1738298119016,0.16381746,3228.7,3228.6,8.93]
[1738298119223,3.09722,3228.7,3228.6,8.93]
[1738298119446,3.26103746,3228.7,3228.6,8.93]
[1738298124209,0.16381746,3228.7,3228.6,8.93]
[1738298124414,3.09713,3228.8,3228.4,8.93]
[1738298124628,0.1638096,3228.7,3228.4,8.93]
[1738298124813,3.09713,3228.8,3228.4,8.93]
[1738298125043,0.1638096,3228.6,3228.4,8.93]
[1738298125213,0.7578,3228.7,3228.4,8.93]
[1738298125414,3.0974,3228.6,3228.4,8.93]
[1738298125614,3.09741,3228.5,3228.4,8.93]
[1738298125918,3.0976,3228.3,3228.2,2.451]
[1738298126246,3.26121311,3228.3,3228.2,2.451]
[1738298127146,3.26121311,3228.3,3228.0,8.93]
[1738298127347,3.0977,3228.2,3228.0,8.93]
[1738298127854,0.16361311,3228.1,3228.0,8.93]
[1738298128674,3.09761,3228.3,3228.0,8.93]
[1738298128883,0.16361311,3228.1,3228.0,8.93]
[1738298129341,3.09761,3228.3,3228.0,8.93]
[1738298129547,0.16361311,3228.2,3228.0,8.93]
[1738298129755,3.09798,3228.0,3227.7,0.8184]
[1738298129966,3.26160311,3227.9,3227.6,8.93]
[1738298130761,0.16361311,3227.9,3227.6,8.93]
[1738298131080,3.0979,3228.0,3227.6,8.93]
[1738298131261,3.26132784,3227.8,3227.6,8.93]
[1738298131457,3.0979,3228.0,3227.6,8.93]
[1738298131673,0.16312168,3227.7,3227.6,8.93]
[1738298131851,3.0979,3228.0,3227.6,8.93]
[1738298132045,3.85913,3228.2,3227.6,12.02825]
[1738298132046,0.16246161,3227.7,3227.6,12.02825]
[1738298132249,3.0978,3228.1,3227.6,12.02825]
[1738298132548,3.0978,3228.1,3227.6,12.31712627]
[1738298132781,0.22472429,3228.0,3227.6,9.21887627]
[1738298133384,0.22472429,3228.0,3227.7,8.93]
[1738298133587,3.32263429,3228.0,3227.7,8.93]
[1738298133882,3.09801,3227.9,3227.7,8.93]
[1738298134273,0.22472429,3227.8,3227.7,8.93]
[1738298135361,3.09808,3227.8,3227.7,8.93]
[1738298135689,3.32280429,3227.8,3227.7,8.93]
[1738298137510,3.32280429,3227.8,3227.5,8.93]
[1738298137511,3.73518472,3227.8,3227.5,8.93]
[1738298137672,3.09827,3227.6,3227.5,8.93]
[1738298138193,3.32292744,3227.6,3227.5,8.93]
[1738298138692,0.22465744,3227.6,3227.5,8.93]
[1738298138990,3.09808,3227.8,3227.5,8.93]
[1738298139192,0.22465744,3227.6,3227.5,8.93]
[1738298139488,3.09808,3227.8,3227.5,8.93]
[1738298139669,0.22465744,3227.6,3227.5,8.93]
[1738298139870,3.09823,3227.7,3227.5,8.93]
[1738298140070,0.22465744,3227.6,3227.5,8.93]
[1738298141361,3.09827,3227.6,3227.5,8.93]
[1738298141562,0.22465744,3227.6,3227.5,8.93]
[1738298141809,3.09817,3227.8,3227.5,8.93]
[1738298141962,0.22465744,3227.6,3227.5,8.93]
[1738298142163,3.09817,3227.8,3227.3,8.93]
[1738298142496,0.22465744,3227.7,3227.4,8.93]
[1738298142678,0.22465744,3227.7,3227.5,0.7836]
[1738298142861,3.09802,3227.9,3227.5,0.7836]
[1738298143065,0.22440569,3227.6,3227.5,0.7836]
[1738298143262,3.09802,3227.9,3227.5,0.7836]
[1738298143484,0.2242051,3227.6,3227.5,0.7836]
[1738298143685,3.09802,3227.9,3227.5,0.7836]
[1738298143893,0.2242051,3227.6,3227.5,0.7836]
[1738298144096,3.09813,3227.8,3227.5,1.07283629]
[1738298144312,0.2242051,3227.6,3227.5,1.07283629]
[1738298144511,3.09821,3227.7,3227.5,1.07283629]
[1738298144711,3.3224751,3227.6,3227.5,0.28923629]
[1738298146282,3.3224751,3227.6,3227.4,8.93]
[1738298148115,3.3224751,3227.6,3227.3,8.93]
[1738298149015,0.2242051,3227.6,3227.4,0.7619]
[1738298149235,3.09803,3227.9,3227.4,1.72639129]
[1738298149439,0.2242051,3227.5,3227.4,1.0511822]
[1738298149741,3.09803,3227.9,3227.4,1.0511822]
[1738298149886,0.2242051,3227.5,3227.4,1.0511822]
[1738298150094,3.09803,3227.9,3227.4,1.34049633]
[1738298150326,0.2242051,3227.5,3227.4,1.34049633]
[1738298150795,3.09803,3227.9,3227.4,1.34049633]
[1738298151031,0.22426803,3227.8,3227.4,1.34049633]
[1738298151395,3.32235803,3227.8,3227.5,0.57859633]
[1738298152421,3.32235803,3227.8,3227.5,0.2392822]
[1738298152628,0.22426803,3227.8,3227.4,0.7619]
[1738298152954,3.32241803,3227.8,3227.4,0.7619]
[1738298153699,3.32241803,3227.8,3227.5,0.23165885]
[1738298154104,3.32241803,3227.8,3227.5,9.16165885]
[1738298154994,3.32241803,3227.8,3227.6,0.28967578]
[1738298155195,0.22426803,3227.8,3227.7,8.93]
[1738298155413,3.09756,3228.4,3227.7,8.93]
[1738298155414,3.09772,3228.2,3227.7,9.7262]
[1738298155594,0.22441359,3227.8,3227.7,9.7262]
[1738298155796,3.0978,3228.1,3227.7,11.03761558]
[1738298156008,0.22441359,3228.0,3227.7,9.7262]
[1738298156230,0.22441359,3228.0,3227.7,10.01587578]
[1738298156433,0.22441359,3228.0,3227.8,0.23182084]
[1738298157402,0.22441359,3228.0,3227.9,0.28967578]
[1738298158117,3.09763,3228.3,3227.9,0.28967578]
[1738298158307,0.2244962,3228.0,3227.9,0.28967578]
[1738298158509,3.0977,3228.2,3227.9,0.52149662]
[1738298159038,0.2244962,3228.1,3227.9,0.52149662]
[1738298159219,0.2244962,3228.1,3228.0,0.28967578]
[1738298159419,0.2244962,3228.1,3228.0,9.21967578]
[1738298160139,0.2244962,3228.1,3228.0,9.45149662]
[1738298160648,0.2244962,3228.1,3228.0,7.59724628]
[1738298160944,3.09722,3228.7,3228.1,0.7606]
[1738298161138,3.09714,3228.8,3228.1,0.7606]
[1738298161343,3.09714,3228.8,3228.3,0.7822]
[1738298161742,3.09695,3229.0,3228.3,0.81317394]
[1738298161950,3.09695,3229.0,3228.4,2.32248497]
[1738298162154,3.09712,3228.8,3228.4,0.7822]
[1738298162442,3.09712,3228.8,3228.2,15.61217578]
[1738298163142,3.09712,3228.8,3228.3,0.28967578]
[1738298163723,3.09712,3228.8,3228.3,0.52149662]
[1738298164012,3.09726,3228.7,3228.3,0.52149662]
[1738298164432,3.09726,3228.7,3228.4,0.28967578]
[1738298164657,3.09712,3228.8,3228.4,0.28967578]
[1738298165244,3.09712,3228.8,3228.5,0.7852]
[1738298165740,3.09692,3229.1,3228.5,0.7852]
[1738298165950,3.097,3229.0,3228.6,5.37]
[1738298166534,3.09705,3228.9,3228.6,5.37]
[1738298167166,3.09714,3228.8,3228.6,5.37]
[1738298167546,3.09705,3228.9,3228.6,5.37]
[1738298168635,3.09684,3229.1,3228.6,5.37]
[1738298169260,3.09697,3229.0,3228.6,5.37]
[1738298170045,3.09722,3228.7,3228.6,5.37]
[1738298170432,3.3217162,3228.7,3228.6,5.37]
[1738298171473,3.3217162,3228.7,3228.3,5.37]
[1738298171474,3.09741,3228.5,3228.3,5.37]
[1738298171841,0.22482645,3228.4,3228.3,5.37]
[1738298172351,4.07352645,3228.4,3228.3,5.37]
[1738298172550,4.7906201,3228.4,3228.3,5.37]
[1738298174169,5.42179284,3228.4,3228.3,5.37]
[1738298174747,2.87429284,3228.4,3227.7,5.37]
[1738298174978,3.09807,3227.9,3227.7,5.37]
[1738298175158,3.09808,3227.8,3227.7,5.37]
[1738298175365,3.32277673,3227.8,3227.7,5.37]
[1738298177774,4.0453314,3227.8,3227.7,5.37]
[1738298179344,3.32277673,3227.8,3227.7,5.37]
[1738298183174,0.22469673,3227.8,3227.7,5.37]
[1738298183546,3.098,3227.9,3227.7,5.37]
[1738298183856,0.22460239,3227.8,3227.7,5.37]
[1738298184270,3.0979,3228.0,3227.7,5.37]
[1738298184469,0.22462989,3227.8,3227.7,5.37]
[1738298184646,3.0979,3228.0,3227.7,5.37]
[1738298184846,0.22462989,3227.8,3227.7,5.37]
[1738298185046,3.0979,3228.0,3227.7,5.37]
[1738298185282,0.22462989,3227.8,3227.7,5.37]
[1738298185489,3.0979,3228.0,3227.7,5.37]
[1738298185786,0.22462989,3227.8,3227.7,5.37]
[1738298185997,3.0977,3228.2,3227.7,5.37]
[1738298185998,0.62511424,3228.2,3227.8,0.7555]
[1738298186177,3.09695,3229.0,3228.2,0.7555]
[1738298186478,3.09716,3228.8,3228.3,5.37]
[1738298188890,0.20883465,3228.7,3228.5,3.09738]
[1738298189088,3.0968,3229.2,3228.5,3.09738]
[1738298189300,0.20884258,3228.6,3228.5,3.09738]
[1738298189496,3.0968,3229.2,3228.5,3.09738]
[1738298189656,3.0968,3229.2,3228.6,5.37]
[1738298190084,3.09684,3229.1,3228.6,5.37]
[1738298191991,3.09694,3229.0,3228.6,5.37]
[1738298193863,3.09703,3228.9,3228.6,5.37]
[1738298194066,3.09714,3228.8,3228.6,5.37]
[1738298197596,3.09722,3228.7,3228.6,5.37]
[1738298197796,7.41582,3228.7,3228.6,5.37]
[1738298198109,3.09778,3228.2,3227.7,6.159]
[1738298198302,3.09778,3228.2,3228.0,0.32271224]
[1738298198605,3.09781,3228.1,3228.0,0.32271224]
[1738298199265,3.09778,3228.2,3228.0,0.32271224]
[1738298199566,3.09753,3228.4,3228.0,0.32271224]
[1738298199766,3.09732,3228.6,3228.1,0.8212]
[1738298200502,3.09749,3228.5,3228.1,0.8212]
[1738298201490,3.09749,3228.5,3228.2,5.37]
[1738298201901,3.09751,3228.4,3228.2,5.37]
[1738298202373,3.09732,3228.6,3228.2,5.37]
[1738298202578,3.09744,3228.5,3228.2,5.37]
[1738298203321,3.09754,3228.4,3228.2,5.37]
[1738298203703,0.20890587,3228.3,3228.2,5.37]
[1738298204215,3.30650587,3228.3,3228.2,5.37]
[1738298204413,0.20890587,3228.3,3228.2,6.2018]
[1738298204912,0.20889004,3228.3,3228.2,6.2018]
[1738298205125,3.70313351,3228.7,3228.2,6.2018]
[1738298205293,0.20889004,3228.3,3228.2,6.2018]
[1738298205473,3.09732,3228.6,3228.2,6.2018]
[1738298205677,0.20889004,3228.3,3228.2,6.2018]
[1738298205879,3.09732,3228.6,3228.2,6.2018]
[1738298206115,0.20889004,3228.3,3228.2,6.2018]
[1738298206409,3.09732,3228.6,3228.2,6.2018]
[1738298206613,0.20889004,3228.3,3228.2,6.2018]
[1738298206927,0.60589351,3228.7,3228.3,3.09757]
[1738298207079,3.09706,3228.9,3228.4,0.7775]
[1738298207282,3.0,3229.0,3228.5,5.37]
[1738298207941,3.70548903,3229.1,3228.5,5.37]
[1738298208144,0.7533,3229.6,3228.8,0.7775]
[1738298208428,3.09633,3229.7,3229.1,0.7775]
[1738298208577,3.0,3229.6,3229.1,0.7775]
[1738298209010,3.09633,3229.7,3229.1,0.7775]
[1738298210029,3.0,3229.6,3229.1,0.7775]
[1738298210328,3.09633,3229.7,3229.2,0.03096612]
[1738298210697,3.09633,3229.7,3229.2,0.32017862]
[1738298212126,3.09608,3229.9,3229.2,0.32017862]
[1738298212600,3.70404531,3230.1,3229.3,3.09662]
[1738298212806,3.0961,3229.9,3229.4,0.7859]
[1738298213334,3.70404531,3230.1,3229.5,5.37]
[1738298213490,3.09597,3230.0,3229.5,5.37]
[1738298215809,3.09609,3229.9,3229.5,5.37]
[1738298216764,3.09597,3230.0,3229.5,5.37]
[1738298217140,3.09608,3229.9,3229.5,5.37]
[1738298217716,3.09597,3230.0,3229.5,5.37]
[1738298218845,0.20246591,3229.9,3229.5,5.37]
[1738298219564,0.20246591,3229.9,3229.5,10.304704]
[1738298219865,3.0957,3230.3,3229.7,3.09626]
[1738298220464,0.20254894,3230.2,3229.6,5.37]
[1738298220609,3.29832894,3230.2,3229.7,0.8016]
[1738298220815,3.09578,3230.2,3229.7,0.8016]
[1738298221050,0.20254894,3230.1,3229.7,0.8016]
[1738298221371,0.20254894,3230.1,3229.7,1.0026]
[1738298222754,0.20254894,3230.1,3229.7,4.12978923]
[1738298223059,3.09563,3230.4,3229.8,1.38457425]
[1738298223526,0.20271495,3230.3,3229.8,1.38457425]
[1738298225149,3.096,3230.0,3229.7,0.8016]
[1738298225318,0.55,3230.1,3229.7,5.37]
[1738298225517,3.09616,3229.8,3229.7,5.37]
[1738298225749,3.90846,3229.8,3229.7,5.37]
[1738298225919,4.83185782,3229.8,3229.7,5.37]
[1738298226679,3.09655,3229.4,3229.3,5.37]
[1738298227130,4.11193567,3229.4,3229.3,5.37]
[1738298228954,3.09702,3228.9,3228.8,5.37]
[1738298229522,3.2991973,3228.9,3228.8,5.37]
[1738298233552,4.1221973,3228.9,3228.8,5.37]
[1738298234539,3.2991973,3228.9,3228.8,5.37]
[1738298235754,3.8491973,3228.9,3228.8,5.37]
[1738298240292,3.09722,3228.7,3228.6,5.37]
[1738298240593,3.29926284,3228.7,3228.2,5.37]
[1738298240960,3.09731,3228.6,3228.2,5.37]
[1738298241660,0.20204284,3228.5,3228.2,5.37]
[1738298242570,3.29946284,3228.5,3228.2,5.37]
[1738298243200,3.09758,3228.4,3228.2,5.37]
[1738298243869,0.20178181,3228.3,3228.2,5.37]
[1738298244502,3.29938181,3228.3,3228.2,5.37]
[1738298245808,0.20178181,3228.3,3228.2,5.37]
[1738298246214,3.71349408,3228.5,3228.2,5.37]
[1738298246377,0.20159589,3228.3,3228.2,5.37]
[1738298246581,3.71349408,3228.5,3228.2,5.37]
[1738298246919,3.09712,3228.8,3228.3,0.7923]
[1738298247501,3.09741,3228.6,3228.2,5.37]
[1738298248610,3.09714,3228.8,3228.2,5.37]
[1738298248814,0.20154843,3228.5,3228.4,3.9206]
[1738298249000,3.09647,3229.5,3228.8,3.09708]
[1738298249203,3.09672,3229.3,3228.7,0.7541]
[1738298249378,3.09703,3228.9,3228.7,0.7541]
[1738298249684,3.09713,3228.8,3228.4,0.7541]
[1738298249890,3.29151364,3228.8,3228.4,0.7541]
[1738298250485,3.09722,3228.7,3228.4,0.7541]
[1738298250712,3.09722,3228.7,3228.5,5.37]
[1738298250913,0.19438364,3228.6,3228.5,5.37]
[1738298253118,3.09689,3229.1,3228.5,5.37]
[1738298253316,0.19444693,3228.6,3228.5,5.37]
[1738298253517,3.09689,3229.1,3228.5,6.622018]
[1738298253717,0.19444693,3228.6,3228.5,6.622018]
[1738298254041,3.09689,3229.1,3228.5,6.622018]
[1738298254539,0.19444693,3229.0,3228.5,6.622018]
[1738298255839,3.29138693,3229.0,3228.5,6.622018]
[1738298256140,3.29138693,3229.0,3228.5,5.37]
[1738298256509,3.29138693,3229.0,3228.6,0.28961277]
[1738298257409,3.09704,3228.9,3228.6,0.28961277]
[1738298257735,3.29151461,3228.9,3228.5,5.37]
[1738298259047,3.09724,3228.7,3228.5,5.37]
[1738298259357,3.09731,3228.6,3228.5,5.37]
[1738298259645,3.29178461,3228.6,3228.5,5.37]
[1738298259945,3.93067607,3228.6,3228.5,5.37]
[1738298260323,4.48067607,3228.6,3228.5,5.37]
[1738298260533,5.24817607,3228.6,3228.5,5.37]
[1738298260719,5.24817607,3228.6,3227.9,0.7857]
[1738298260720,3.09789,3228.0,3227.9,5.37]
[1738298261135,0.19430846,3228.0,3227.9,5.37]
[1738298261339,3.09758,3228.4,3227.9,5.37]
[1738298261615,3.86483,3228.6,3228.0,0.8175]
[1738298261616,3.09733,3228.6,3228.0,0.8175]
[1738298262048,3.86084,3228.8,3228.1,3.12870613]
[1738298262049,3.09714,3228.8,3228.1,3.12870613]
[1738298262246,3.09714,3228.8,3228.3,0.7779]
[1738298262427,3.09714,3228.8,3228.3,3.8755]
[1738298262628,3.09714,3228.8,3228.3,3.90647332]
[1738298262851,3.09693,3229.0,3228.4,0.92764733]
[1738298263052,3.09707,3228.9,3228.4,0.92764733]
[1738298263357,3.09707,3228.9,3228.4,1.21759897]
[1738298263516,3.09693,3229.0,3228.4,1.21759897]
[1738298263718,3.29132264,3228.9,3228.5,0.23194784]
[1738298264257,3.09714,3228.8,3228.5,0.23194784]
[1738298264430,3.09714,3228.8,3228.6,0.28995164]
[1738298264617,3.09693,3229.0,3228.6,0.28995164]
[1738298264818,0.19429264,3228.7,3228.6,0.28995164]
[1738298265044,3.09722,3228.7,3228.6,0.28995164]
[1738298265225,4.06751264,3228.7,3228.6,0.28995164]
[1738298266053,4.06751264,3228.7,3228.2,5.37]
[1738298266252,3.09744,3228.5,3228.2,5.37]
[1738298266863,0.19429264,3228.4,3228.2,5.37]
[1738298267016,0.19429264,3228.4,3228.3,0.23197847]
[1738298267224,0.19429264,3228.4,3228.3,5.62553632]
[1738298267518,0.19437968,3228.4,3228.3,2.81790618]
[1738298267950,3.09724,3228.7,3228.3,2.81790618]
[1738298268157,0.19437968,3228.4,3228.3,1.28444833]
[1738298268367,3.09724,3228.7,3228.3,1.28444833]
[1738298268368,3.09732,3228.6,3228.3,1.28444833]
[1738298268676,0.19437968,3228.4,3228.3,1.28444833]
[1738298268874,3.09724,3228.7,3228.3,1.28444833]
[1738298269498,0.19437968,3228.6,3228.3,1.28444833]
[1738298270001,0.19437968,3228.6,3228.4,0.52194833]
[1738298271649,0.19437968,3228.6,3228.5,0.28996986]
[1738298272882,3.29168968,3228.6,3228.5,5.65996986]
[1738298273178,4.00806265,3228.6,3228.5,5.65996986]
[1738298273402,4.00806265,3228.6,3228.5,5.37]
[1738298273698,4.55806265,3228.6,3228.5,5.37]
[1738298273864,3.09786,3228.1,3227.8,0.8317]
[1738298274058,3.09789,3228.0,3227.9,5.37]
[1738298274302,3.29236066,3228.0,3227.9,5.37]
[1738298278981,0.19447066,3228.0,3227.9,5.37]
[1738298279488,3.29236066,3228.0,3227.9,5.37]
[1738298279667,4.00886273,3228.0,3227.9,5.37]